fUSD/lending_fUSD_20241127
["ID","MTS","AMOUNT","RATE_DAILY","PERIOD"]
[343560661,1732722662072,-651.53,9.999e-05,2]
[343560662,1732722662082,-651.5331536,9.999e-05,2]
[343560663,1732722662091,-500.0,9.999e-05,2]
[343560664,1732722662101,-500.0,9.999e-05,2]
[343560665,1732722662113,-500.0,9.999e-05,2]
[343560666,1732722662123,-500.0,9.999e-05,2]
[343560667,1732722662132,-354.16,9.999e-05,2]
[343560668,1732722662142,-500.0,9.999e-05,2]
[343560669,1732722662152,-500.0,9.999e-05,2]
[343560670,1732722662161,-500.0,9.999e-05,2]
[343560671,1732722662171,-500.0,9.999e-05,2]
[343560672,1732722662181,-500.0,9.999e-05,2]
[343560673,1732722662191,-500.0,9.999e-05,2]
[343560674,1732722662200,-309.02684172,9.999e-05,2]
[343560675,1732722662209,-500.0,9.999e-05,2]
[343560676,1732722662219,-500.0,9.999e-05,2]
[343560677,1732722662228,-500.0,9.999e-05,2]
[343560678,1732722662238,-446.38,9.999e-05,2]
[343560679,1732722662247,-615.36,9.999e-05,2]
[343560680,1732722662256,-615.36,9.999e-05,2]
[343560681,1732722662265,-615.36,9.999e-05,2]
[343560682,1732722662274,-615.36,9.999e-05,2]
[343560683,1732722662283,-615.36,9.999e-05,2]
[343560684,1732722662292,-615.36,9.999e-05,2]
[343560685,1732722662301,-615.36,9.999e-05,2]
[343560686,1732722662310,-615.36,9.999e-05,2]
[343560687,1732722662320,-615.36,9.999e-05,2]
[343560688,1732722662328,-615.36,9.999e-05,2]
[343560689,1732722662338,-615.36,9.999e-05,2]
[343560690,1732722662347,-615.36,9.999e-05,2]
[343560691,1732722662356,-615.45,9.999e-05,2]
[343560692,1732722662368,-554.69,9.999e-05,2]
[343560693,1732722662377,-554.69,9.999e-05,2]
[343560694,1732722662386,-554.69,9.999e-05,2]
[343560695,1732722662395,-554.69,9.999e-05,2]
[343560696,1732722662405,-554.69,9.999e-05,2]
[343560697,1732722662416,-554.69,9.999e-05,2]
[343560698,1732722662428,-554.69,9.999e-05,2]
[343560699,1732722662437,-554.69,9.999e-05,2]
[343560700,1732722662446,-554.69,9.999e-05,2]
[343560701,1732722662455,-554.69,9.999e-05,2]
[343560702,1732722662465,-554.78,9.999e-05,2]
[343560703,1732722662475,-500.0,9.999e-05,2]
[343560704,1732722662484,-500.0,9.999e-05,2]
[343560705,1732722662494,-164.59,9.999e-05,2]
[343560706,1732722662503,-500.0,9.999e-05,2]
[343560707,1732722662513,-500.0,9.999e-05,2]
[343560708,1732722662522,-500.0,9.999e-05,2]
[343560709,1732722662532,-500.0,9.999e-05,2]
[343560710,1732722662542,-500.0,9.999e-05,2]
[343560711,1732722662551,-500.0,9.999e-05,2]
[343560712,1732722662560,-500.0,9.999e-05,2]
[343560713,1732722662570,-509.92,9.999e-05,2]
[343560714,1732722662579,-559.07,9.999e-05,2]
[343560715,1732722662590,-559.07,9.999e-05,2]
[343560716,1732722662599,-559.07,9.999e-05,2]
[343560717,1732722662611,-559.07,9.999e-05,2]
[343560718,1732722662626,-559.07,9.999e-05,2]
[343560719,1732722662638,-500.0,9.999e-05,2]
[343560720,1732722662650,-559.07,9.999e-05,2]
[343560721,1732722662661,-559.07,9.999e-05,2]
[343560722,1732722662673,-500.0,9.999e-05,2]
[343560723,1732722662686,-559.07,9.999e-05,2]
[343560724,1732722662699,-500.0,9.999e-05,2]
[343560725,1732722662711,-500.0,9.999e-05,2]
[343560726,1732722662723,-559.07,9.999e-05,2]
[343560727,1732722662737,-500.0,9.999e-05,2]
[343560728,1732722662750,-559.07,9.999e-05,2]
[343560729,1732722662763,-500.0,9.999e-05,2]
[343560730,1732722662775,-559.16,9.999e-05,2]
[343560731,1732722662785,-450.54,9.999e-05,2]
[343560732,1732722662799,-500.0,9.999e-05,2]
[343560733,1732722662812,-192.23,9.999e-05,2]
[343560734,1732722662824,-333.32,9.999e-05,2]
[343560735,1732722662837,-500.0,9.999e-05,2]
[343560736,1732722662850,-500.0,9.999e-05,2]
[343560737,1732722662866,-500.0,9.999e-05,2]
[343560738,1732722662878,-500.0,9.999e-05,2]
[343560739,1732722662892,-500.0,9.999e-05,2]
[343560740,1732722662904,-500.0,9.999e-05,2]
[343560741,1732722662917,-500.0,9.999e-05,2]
[343560742,1732722662929,-500.0,9.999e-05,2]
[343560743,1732722662942,-500.0,9.999e-05,2]
[343560744,1732722662955,-500.0,9.999e-05,2]
[343560745,1732722662967,-500.0,9.999e-05,2]
[343560746,1732722662979,-603.74,9.999e-05,2]
[343560747,1732722662992,-4649.27,9.999e-05,2]
[343560748,1732722663005,-4649.27,9.999e-05,2]
[343560749,1732722663017,-4649.27,9.999e-05,2]
[343560750,1732722663029,-4649.27,9.999e-05,2]
[343560751,1732722663040,-4649.27,9.999e-05,2]
[343560752,1732722663051,-221.4,9.999e-05,2]
[343560753,1732722663062,-4649.27,9.999e-05,2]
[343560754,1732722663074,-4649.27,9.999e-05,2]
[343560755,1732722663089,-4649.27,9.999e-05,2]
[343560756,1732722663101,-4649.27,9.999e-05,2]
[343560757,1732722663113,-4649.27,9.999e-05,2]
[343560758,1732722663124,-500.0,9.999e-05,2]
[343560759,1732722663135,-4649.27,9.999e-05,2]
[343560760,1732722663147,-500.0,9.999e-05,2]
[343560761,1732722663161,-4649.27,9.999e-05,2]
[343560762,1732722663174,-500.0,9.999e-05,2]
[343560763,1732722663185,-4649.31,9.999e-05,2]
[343560764,1732722663197,-500.0,9.999e-05,2]
[343560765,1732722663208,-500.0,9.999e-05,2]
[343560766,1732722663220,-500.0,9.999e-05,2]
[343560767,1732722663232,-500.0,9.999e-05,2]
[343560768,1732722663244,-500.0,9.999e-05,2]
[343560769,1732722663257,-547.92,9.999e-05,2]
[343560770,1732722663268,-594.94,9.999e-05,2]
[343560771,1732722663281,-594.94,9.999e-05,2]
[343560772,1732722663292,-594.94,9.999e-05,2]
[343560773,1732722663304,-594.94,9.999e-05,2]
[343560774,1732722663317,-594.94,9.999e-05,2]
[343560775,1732722663328,-594.94,9.999e-05,2]
[343560776,1732722663340,-594.94,9.999e-05,2]
[343560777,1732722663352,-594.94,9.999e-05,2]
[343560778,1732722663367,-594.94,9.999e-05,2]
[343560779,1732722663378,-594.94,9.999e-05,2]
[343560780,1732722663391,-594.94,9.999e-05,2]
[343560781,1732722663403,-594.94,9.999e-05,2]
[343560782,1732722663419,-443.80499272,9.999e-05,2]
[343560783,1732722663431,-595.13,9.999e-05,2]
[343560784,1732722663444,-1939.22,9.999e-05,2]
[343560785,1732722663456,-1939.22,9.999e-05,2]
[343560786,1732722663468,-1939.22,9.999e-05,2]
[343560787,1732722663480,-1939.22,9.999e-05,2]
[343560788,1732722663492,-1939.22,9.999e-05,2]
[343560789,1732722663505,-1939.22,9.999e-05,2]
[343560790,1732722663516,-1939.22,9.999e-05,2]
[343560791,1732722663529,-1939.22,9.999e-05,2]
[343560792,1732722663541,-1939.22,9.999e-05,2]
[343560793,1732722663552,-1939.22,9.999e-05,2]
[343560794,1732722663564,-1939.22,9.999e-05,2]
[343560795,1732722663576,-1939.22,9.999e-05,2]
[343560796,1732722663588,-1939.35,9.999e-05,2]
[343560797,1732722663601,-500.0,9.999e-05,2]
[343560798,1732722663615,-500.0,9.999e-05,2]
[343560799,1732722663627,-500.0,9.999e-05,2]
[343560800,1732722663640,-500.0,9.999e-05,2]
[343560801,1732722663652,-222.08,9.999e-05,2]
[343560802,1732722663665,-500.0,9.999e-05,2]
[343560803,1732722663677,-500.0,9.999e-05,2]
[343560804,1732722663689,-500.0,9.999e-05,2]
[343560805,1732722663701,-500.0,9.999e-05,2]
[343560806,1732722663713,-500.0,9.999e-05,2]
[343560807,1732722663725,-543.49,9.999e-05,2]
[343560808,1732722663736,-543.49,9.999e-05,2]
[343560809,1732722663747,-500.0,9.999e-05,2]
[343560810,1732722663759,-543.49,9.999e-05,2]
[343560811,1732722663770,-543.49,9.999e-05,2]
[343560812,1732722663782,-522.05,9.999e-05,2]
[343560813,1732722663795,-543.49,9.999e-05,2]
[343560814,1732722663806,-543.49,9.999e-05,2]
[343560815,1732722663821,-543.49,9.999e-05,2]
[343560816,1732722663834,-543.49,9.999e-05,2]
[343560817,1732722663846,-543.49,9.999e-05,2]
[343560818,1732722663858,-543.49,9.999e-05,2]
[343560819,1732722663872,-543.49,9.999e-05,2]
[343560820,1732722663884,-543.49,9.999e-05,2]
[343560821,1732722663897,-543.49504572,9.999e-05,2]
[343560822,1732722663909,-4542.65,9.999e-05,2]
[343560823,1732722663921,-4542.65,9.999e-05,2]
[343560824,1732722663933,-4542.65,9.999e-05,2]
[343560825,1732722663945,-4542.65,9.999e-05,2]
[343560826,1732722663958,-4542.65,9.999e-05,2]
[343560827,1732722663970,-4542.65,9.999e-05,2]
[343560828,1732722663982,-4542.65,9.999e-05,2]
[343560829,1732722663994,-4542.65,9.999e-05,2]
[343560830,1732722664006,-4542.65,9.999e-05,2]
[343560831,1732722664019,-4542.65,9.999e-05,2]
[343560832,1732722664031,-4542.65,9.999e-05,2]
[343560833,1732722664043,-4542.65,9.999e-05,2]
[343560834,1732722664056,-4542.77,9.999e-05,2]
[343560835,1732722664068,-500.0,9.999e-05,2]
[343560836,1732722664080,-500.0,9.999e-05,2]
[343560837,1732722664093,-500.0,9.999e-05,2]
[343560838,1732722664105,-500.0,9.999e-05,2]
[343560839,1732722664121,-500.0,9.999e-05,2]
[343560840,1732722664132,-500.0,9.999e-05,2]
[343560841,1732722664144,-500.0,9.999e-05,2]
[343560842,1732722664157,-500.0,9.999e-05,2]
[343560843,1732722664169,-389.32,9.999e-05,2]
[343560844,1732722664181,-500.0,9.999e-05,2]
[343560845,1732722664193,-500.0,9.999e-05,2]
[343560846,1732722664208,-500.0,9.999e-05,2]
[343560847,1732722664220,-484.12,9.999e-05,2]
[343560848,1732722664231,-500.0,9.999e-05,2]
[343560849,1732722664243,-500.0,9.999e-05,2]
[343560850,1732722664255,-500.0,9.999e-05,2]
[343560851,1732722664266,-357.37,9.999e-05,2]
[343560852,1732722664278,-8817.3,9.999e-05,2]
[343560853,1732722664289,-8817.3,9.999e-05,2]
[343560854,1732722664300,-7494.45,9.999e-05,2]
[343560855,1732722664312,-7494.45,9.999e-05,2]
[343560856,1732722664324,-8817.3,9.999e-05,2]
[343560857,1732722664336,-7494.45,9.999e-05,2]
[343560858,1732722664348,-8817.3,9.999e-05,2]
[343560859,1732722664360,-8817.3,9.999e-05,2]
[343560860,1732722664372,-7494.45,9.999e-05,2]
[343560861,1732722664384,-8817.3,9.999e-05,2]
[343560862,1732722664396,-7494.45,9.999e-05,2]
[343560863,1732722664408,-8817.3,9.999e-05,2]
[343560864,1732722664421,-7494.45,9.999e-05,2]
[343560865,1732722664433,-8817.3,9.999e-05,2]
[343560866,1732722664445,-7494.45,9.999e-05,2]
[343560867,1732722664458,-7494.45,9.999e-05,2]
[343560868,1732722664470,-8817.3,9.999e-05,2]
[343560869,1732722664482,-7494.45,9.999e-05,2]
[343560870,1732722664494,-8817.3,9.999e-05,2]
[343560871,1732722664506,-7494.45,9.999e-05,2]
[343560872,1732722664517,-8817.3,9.999e-05,2]
[343560873,1732722664529,-7494.45,9.999e-05,2]
[343560874,1732722664541,-8817.3,9.999e-05,2]
[343560875,1732722664553,-7494.45,9.999e-05,2]
[343560876,1732722664565,-7494.55,9.999e-05,2]
[343560877,1732722664576,-8817.46257574,9.999e-05,2]
[343560878,1732722664589,-500.0,9.999e-05,2]
[343560879,1732722664600,-500.0,9.999e-05,2]
[343560880,1732722664614,-500.0,9.999e-05,2]
[343560881,1732722664626,-500.0,9.999e-05,2]
[343560882,1732722664638,-500.0,9.999e-05,2]
[343560883,1732722664650,-500.0,9.999e-05,2]
[343560884,1732722664662,-500.0,9.999e-05,2]
[343560885,1732722664674,-500.0,9.999e-05,2]
[343560886,1732722664686,-500.0,9.999e-05,2]
[343560887,1732722664699,-500.0,9.999e-05,2]
[343560888,1732722664711,-14549.42,9.999e-05,2]
[343560889,1732722664722,-500.0,9.999e-05,2]
[343560890,1732722664734,-14549.42,9.999e-05,2]
[343560891,1732722664746,-385.22,9.999e-05,2]
[343560892,1732722664758,-14549.42,9.999e-05,2]
[343560893,1732722664770,-14549.42,9.999e-05,2]
[343560894,1732722664782,-14549.42,9.999e-05,2]
[343560895,1732722664793,-14549.42,9.999e-05,2]
[343560896,1732722664804,-14549.42,9.999e-05,2]
[343560897,1732722664816,-14549.42,9.999e-05,2]
[343560898,1732722664827,-14549.42,9.999e-05,2]
[343560899,1732722664838,-14549.42,9.999e-05,2]
[343560900,1732722664850,-14549.55503073,9.999e-05,2]
[343560901,1732722664867,-500.0,9.999e-05,2]
[343560902,1732722664879,-500.0,9.999e-05,2]
[343560903,1732722664891,-500.0,9.999e-05,2]
[343560904,1732722664902,-500.0,9.999e-05,2]
[343560905,1732722664913,-500.0,9.999e-05,2]
[343560906,1732722664924,-500.0,9.999e-05,2]
[343560907,1732722664935,-546.71417352,9.999e-05,2]
[343560908,1732722664947,-2841.63,9.999e-05,2]
[343560909,1732722664958,-2841.63,9.999e-05,2]
[343560910,1732722664970,-2841.63,9.999e-05,2]
[343560911,1732722664981,-2841.63,9.999e-05,2]
[343560912,1732722664993,-500.0,9.999e-05,2]
[343560913,1732722665004,-2841.63,9.999e-05,2]
[343560914,1732722665015,-500.0,9.999e-05,2]
[343560915,1732722665027,-2841.63,9.999e-05,2]
[343560916,1732722665038,-500.0,9.999e-05,2]
[343560917,1732722665049,-2841.63,9.999e-05,2]
[343560918,1732722665060,-500.0,9.999e-05,2]
[343560919,1732722665070,-500.0,9.999e-05,2]
[343560920,1732722665082,-500.0,9.999e-05,2]
[343560921,1732722665093,-2841.63,9.999e-05,2]
[343560922,1732722665104,-500.0,9.999e-05,2]
[343560923,1732722665121,-500.0,9.999e-05,2]
[343560924,1732722665133,-2841.63,9.999e-05,2]
[343560925,1732722665143,-500.0,9.999e-05,2]
[343560926,1732722665154,-500.0,9.999e-05,2]
[343560927,1732722665165,-500.0,9.999e-05,2]
[343560928,1732722665175,-2841.63,9.999e-05,2]
[343560929,1732722665187,-500.0,9.999e-05,2]
[343560930,1732722665198,-500.0,9.999e-05,2]
[343560931,1732722665208,-500.0,9.999e-05,2]
[343560932,1732722665219,-2841.67799869,9.999e-05,2]
[343560933,1732722665230,-500.0,9.999e-05,2]
[343560934,1732722665241,-500.0,9.999e-05,2]
[343560935,1732722665252,-322.85427014,9.999e-05,2]
[343560936,1732722665263,-500.0,9.999e-05,2]
[343560937,1732722665275,-316.62,9.999e-05,2]
[343560938,1732722665287,-6262.92,9.999e-05,2]
[343560939,1732722665298,-6262.92,9.999e-05,2]
[343560940,1732722665309,-6262.92,9.999e-05,2]
[343560941,1732722665318,-6262.92,9.999e-05,2]
[343560942,1732722665327,-6262.92,9.999e-05,2]
[343560943,1732722665337,-6262.92,9.999e-05,2]
[343560944,1732722665347,-6262.92,9.999e-05,2]
[343560945,1732722665356,-6262.92,9.999e-05,2]
[343560946,1732722665371,-6262.92,9.999e-05,2]
[343560947,1732722665382,-6262.92,9.999e-05,2]
[343560948,1732722665391,-6263.02873431,9.999e-05,2]
[343560949,1732722665401,-655.08,9.999e-05,2]
[343560950,1732722665411,-655.08,9.999e-05,2]
[343560951,1732722665755,-655.08,9.999e-05,2]
[343560952,1732722665783,-655.08,9.999e-05,2]
[343560953,1732722665804,-500.0,9.999e-05,2]
[343560954,1732722665820,-655.08,9.999e-05,2]
[343560955,1732722665830,-424.02375817,9.999e-05,2]
[343560956,1732722665840,-655.08,9.999e-05,2]
[343560957,1732722665849,-500.0,9.999e-05,2]
[343560958,1732722665859,-500.0,9.999e-05,2]
[343560959,1732722665876,-500.0,9.999e-05,2]
[343560960,1732722665886,-500.0,9.999e-05,2]
[343560961,1732722665895,-500.0,9.999e-05,2]
[343560962,1732722665906,-500.0,9.999e-05,2]
[343560963,1732722665915,-500.0,9.999e-05,2]
[343560964,1732722665924,-500.0,9.999e-05,2]
[343560965,1732722665934,-500.0,9.999e-05,2]
[343560966,1732722665943,-227.52,9.999e-05,2]
[343560967,1732722665953,-655.08,9.999e-05,2]
[343560968,1732722665962,-655.08,9.999e-05,2]
[343560969,1732722665972,-655.08,9.999e-05,2]
[343560970,1732722665981,-655.08,9.999e-05,2]
[343560971,1732722665990,-655.17,9.999e-05,2]
[343560972,1732722665999,-500.0,9.999e-05,2]
[343560973,1732722666008,-500.0,9.999e-05,2]
[343560974,1732722666018,-500.0,9.999e-05,2]
[343560975,1732722666027,-500.0,9.999e-05,2]
[343560976,1732722666037,-500.0,9.999e-05,2]
[343560977,1732722666046,-201.91,9.999e-05,2]
[343560978,1732722666056,-500.0,9.999e-05,2]
[343560979,1732722666065,-500.0,9.999e-05,2]
[343560980,1732722666075,-464.86,9.999e-05,2]
[343560981,1732722666085,-500.0,9.999e-05,2]
[343560982,1732722666094,-500.0,9.999e-05,2]
[343560983,1732722666104,-500.0,9.999e-05,2]
[343560984,1732722666117,-500.0,9.999e-05,2]
[343560985,1732722666126,-500.0,9.999e-05,2]
[343560986,1732722666136,-500.0,9.999e-05,2]
[343560987,1732722666145,-489.9377864,9.999e-05,2]
[343560988,1732722666155,-500.0,9.999e-05,2]
[343560989,1732722666165,-500.0,9.999e-05,2]
[343560990,1732722666174,-500.0,9.999e-05,2]
[343560991,1732722666184,-616.78,9.999e-05,2]
[343560992,1732722666194,-500.0,9.999e-05,2]
[343560993,1732722666203,-500.0,9.999e-05,2]
[343560994,1732722666212,-500.0,9.999e-05,2]
[343560995,1732722666222,-500.0,9.999e-05,2]
[343560996,1732722666231,-500000.0,0.0001,2]
[343560997,1732722666241,-6207.33876288,0.0001,2]
[343560998,1732722666251,-6207.33876288,0.0001,2]
[343560999,1732722666261,-6207.33876288,0.0001,2]
[343561000,1732722666271,-6207.33876288,0.0001,2]
[343561001,1732722666281,-6207.33876288,0.0001,2]
[343561002,1732722666290,-6207.33876288,0.0001,2]
[343561003,1732722666299,-6207.33876288,0.0001,2]
[343561004,1732722666309,-6207.33876288,0.0001,2]
[343561005,1732722666319,-2730080.40807811,0.0001,2]
[343561006,1732722666604,-2005.4827728,0.0001,2]
[343561007,1732722666632,-71100.0,0.0001,2]
[343561008,1732722666644,-475.255,0.0001,2]
[343561009,1732722666759,-500.0,9.863e-05,2]
[343561010,1732722666769,-500.0,9.863e-05,2]
[343561011,1732722666780,-623.23,9.863e-05,2]
[343561012,1732722666789,-292.2934,9.999e-05,2]
[343561013,1732722666802,-245.5666,9.999e-05,2]
[343561014,1732722666811,-28277.90749501,0.0001,2]
[343561015,1732722666823,-102099.56457634,0.0001,2]
[343561016,1732722666842,-2129.4889616,0.0001,2]
[343561017,1732722666853,-490.62,0.0001,2]
[343561018,1732722666871,-649.609672,0.0001,2]
[343561019,1732722666882,-9560.19343842,0.0001,2]
[343561020,1732722666893,-720.09999999,0.0001,2]
[343561021,1732722666939,-321.20759751,0.0001,2]
[343561022,1732722666950,-624.1781993,0.0001,2]
[343561023,1732722666962,-14006.18150074,0.0001,2]
[343561024,1732722666973,-18624.2596488,0.0001,2]
[343561025,1732722666984,-5456.0021928,0.0001,2]
[343561026,1732722666996,-281.67969995,0.0001,2]
[343561027,1732722667228,-758.93226181,8.856e-05,2]
[343561028,1732722667239,-241.06773819,8.856e-05,2]
[343561029,1732722667248,-500.0,9.863e-05,2]
[343561030,1732722667257,-500.0,9.863e-05,2]
[343561031,1732722667266,-500.0,9.863e-05,2]
[343561032,1732722667275,-1000.0,9.963e-05,2]
[343561033,1732722667285,-451.47469642,0.0001,2]
[343561034,1732722667298,-5755.86406646,0.0001,2]
[343561035,1732722667308,-18257.90184654,0.0001,2]
[343561036,1732722667319,-5084.49267758,0.0001,2]
[343561037,1732722667330,-19858.14326171,0.0001,2]
[343561038,1732722667341,-2927.39037467,0.0001,2]
[343561039,1732722667352,-355.708,0.0001,2]
[343561040,1732722667366,-1042.15076527,0.0001,2]
[343561041,1732722667378,-268.15576443,0.0001,2]
[343561042,1732722667390,-848.909429,0.0001,2]
[343561043,1732722667420,-8395.02079398,0.0001,2]
[343561044,1732722667432,-250.4586,0.0001,2]
[343561045,1732722667443,-31633.45747582,0.0001,2]
[343561046,1732722667455,-8961.63588,0.0001,2]
[343561047,1732722667465,-1301.78352167,0.0001,2]
[343561048,1732722667477,-47790.90896815,0.0001,2]
[343561049,1732722667491,-388.20870682,0.0001,2]
[343561050,1732722667505,-950.0,0.0001,2]
[343561051,1732722667516,-1352.07469168,0.0001,2]
[343561052,1732722667527,-8987.78300114,0.0001,2]
[343561053,1732722667840,-150.0,9.727e-05,2]
[343561054,1732722667849,-150.0,9.73e-05,2]
[343561055,1732722667858,-150.0,9.733e-05,2]
[343561056,1732722667872,-150.0,9.753e-05,2]
[343561057,1732722667882,-150.0,9.76e-05,2]
[343561058,1732722667892,-150.0,9.771e-05,2]
[343561059,1732722667902,-150.0,9.772e-05,2]
[343561060,1732722667912,-150.0,9.792e-05,2]
[343561061,1732722667923,-150.0,9.797e-05,2]
[343561062,1732722667934,-150.0,9.827e-05,2]
[343561063,1732722667944,-150.0,9.827e-05,2]
[343561064,1732722667955,-150.0,9.849e-05,2]
[343561065,1732722667964,-150.0,9.867e-05,2]
[343561066,1732722667974,-150.0,9.868e-05,2]
[343561067,1732722667984,-150.0,9.883e-05,2]
[343561068,1732722667993,-54.18526206,9.888e-05,2]
[343561069,1732722668005,-95.81473794,9.888e-05,2]
[343561070,1732722668015,-150.0,9.912e-05,2]
[343561071,1732722668025,-150.0,9.914e-05,2]
[343561072,1732722668035,-150.0,9.952e-05,2]
[343561073,1732722668045,-150.0,9.959e-05,2]
[343561074,1732722668055,-138.22726206,9.959e-05,2]
[343561075,1732722668067,-11.77273794,9.959e-05,2]
[343561076,1732722668076,-150.0,9.968e-05,2]
[343561077,1732722668087,-9395.62726205,0.0001,2]
[343561078,1732722668100,-4789.72238,0.0001,2]
[343561079,1732722668117,-53445.78501405,0.0001,2]
[343561080,1732722668128,-47783.09710899,0.0001,2]
[343561081,1732722668139,-5714.6266554,0.0001,2]
[343561082,1732722668178,-150.0,9.754e-05,2]
[343561083,1732722668188,-150.0,9.903e-05,2]
[343561084,1732722668198,-150.0,9.944e-05,2]
[343561085,1732722668207,-74462.2000009,0.0001,2]
[343561086,1732722668220,-4130.12758021,0.0001,2]
[343561087,1732722668231,-331.12740817,0.0001,2]
[343561088,1732722668242,-3391.63147011,0.0001,2]
[343561089,1732722668254,-69038.70500796,0.0001,2]
[343561090,1732722668265,-3711.4,0.0001,2]
[343561091,1732722668295,-150.0,9.841e-05,2]
[343561092,1732722668305,-745.93464999,0.0001,2]
[343561093,1732722668316,-47806.0,0.0001,2]
[343561094,1732722668328,-1912.59756,0.0001,2]
[343561095,1732722668340,-38376.70197488,0.0001,2]
[343561096,1732722668352,-9564.29039999,0.0001,2]
[343561097,1732722668366,-6460.62267951,0.0001,2]
[343561098,1732722668378,-15075.7249111,0.0001,2]
[343561099,1732722668389,-23032.10635628,0.0001,2]
[343561102,1732722893961,-1881.77,8.219e-05,2]
[343561103,1732722893983,-166.57,8.312e-05,2]
[343561104,1732722894005,-250.0,8.751e-05,2]
[343561105,1732722894028,-164.52,8.823e-05,2]
[343561106,1732722894051,-388.79,8.865e-05,2]
[343561107,1732722894073,-250.0,8.894e-05,2]
[343561108,1732722897605,850.42115886,8.312e-05,2]
[343561109,1732722899507,-150.22783408,9.213e-05,2]
[343561110,1732722899844,-150.22783408,9.213e-05,2]
[343561111,1732722900248,-150.22783408,9.213e-05,2]
[343561112,1732722900542,-150.22783408,9.213e-05,2]
[343561113,1732722916521,-167.04,7.043e-05,2]
[343561114,1732722916544,-850.42115884,8.751e-05,2]
[343561115,1732722920467,171.89,9.071e-05,2]
[343561117,1732722955580,-521.35,8.807e-05,2]
[343561118,1732722955603,-1590.889,9.213e-05,2]
[343561123,1732723445038,150.0,7.01e-05,2]
[343561161,1732723832146,-644.77,8.06e-05,2]
[343561162,1732723832155,-945.83,8.081e-05,2]
[343561163,1732723832165,-1968.32,8.219e-05,2]
[343561164,1732723832175,-260.67,8.219e-05,2]
[343561165,1732723832184,-250.0,8.219e-05,2]
[343561166,1732723832194,-250.0,8.373e-05,2]
[343561167,1732723832203,-162.48,8.425e-05,2]
[343561168,1732723832213,-1000.0,8.427e-05,2]
[343561169,1732723832223,-300.0,8.46e-05,2]
[343561170,1732723832232,-1211.34,8.489e-05,2]
[343561171,1732723832241,-319.13,8.519e-05,2]
[343561172,1732723832251,-200.0,8.53e-05,2]
[343561173,1732723832260,-20594.05,8.555e-05,2]
[343561174,1732723832271,-415.55,8.58e-05,2]
[343561175,1732723832280,-152.12,8.613e-05,2]
[343561176,1732723832290,-300.9,8.613e-05,2]
[343561177,1732723832299,-197.1,8.613e-05,2]
[343561178,1732723832308,-243.01,8.647e-05,2]
[343561179,1732723832318,-250.0,8.805e-05,2]
[343561180,1732723832331,-600.0,8.9e-05,3]
[343561181,1732723832341,-150.0,8.908e-05,2]
[343561182,1732723832350,-150.0,8.928e-05,2]
[343561183,1732723832360,-150.0,8.938e-05,2]
[343561184,1732723832369,-150.0,8.938e-05,2]
[343561185,1732723832379,-150.0,8.938e-05,2]
[343561186,1732723832388,-45245.0,8.939e-05,2]
[343561187,1732723832402,-1300.0,9e-05,3]
[343561188,1732723832412,-433.75,9.178e-05,2]
[343561189,1732723832421,-300.0,9.178e-05,2]
[343561190,1732723832431,-971.82,9.178e-05,2]
[343561191,1732723832440,-363.48,9.178e-05,2]
[343561192,1732723832450,-302.76,9.178e-05,2]
[343561193,1732723832459,-971.82,9.178e-05,2]
[343561194,1732723832469,-363.48,9.178e-05,2]
[343561195,1732723832479,-363.48,9.178e-05,2]
[343561196,1732723832488,-527.41,9.178e-05,2]
[343561197,1732723832498,-302.39,9.178e-05,2]
[343561198,1732723832507,-8833.7279,9.2e-05,2]
[343561199,1732723832517,-678.0316,9.2e-05,2]
[343561200,1732723832527,-680.5714,9.2e-05,2]
[343561201,1732723832536,-9944.64963281,9.2e-05,2]
[343561202,1732723832549,-346.30426719,9.2e-05,2]
[343561203,1732723832558,-163.51408084,9.2e-05,2]
[343561204,1732723832594,-1948.72491916,9.2e-05,2]